bitfinex/quotes_SOLUSD_20260305
["timestamp","ask_amount","ask_price","bid_price","bid_amount"]
[1772731042906,11.30543904,88.453,88.399,0.468269]
[1772731043303,0.45813945,88.452,88.399,0.468269]
[1772731044917,0.45813945,88.45,88.402,0.468269]
[1772731045827,11.30569467,88.451,88.402,0.468269]
[1772731046205,0.45813945,88.46,88.402,0.468269]
[1772731046420,0.45813945,88.47,88.402,0.468269]
[1772731046622,0.45813945,88.47,88.405,0.468269]
[1772731046820,0.45813945,88.468,88.408,0.468269]
[1772731048413,39.56188042,88.469,88.407,0.28432314]
[1772731048414,11.3033944,88.469,88.411,0.49010416]
[1772731048612,11.30224462,88.478,88.411,0.49010416]
[1772731048812,0.48400225,88.486,88.414,0.49010416]
[1772731049016,11.30135051,88.485,88.42,0.49010416]
[1772731049519,11.30135051,88.485,88.422,0.49010416]
[1772731049721,11.30135051,88.485,88.423,0.49010416]
[1772731049921,11.30135051,88.485,88.428,0.49010416]
[1772731050126,0.48400225,88.486,88.429,0.45418122]
[1772731050333,11.78530974,88.486,88.429,0.45418122]
[1772731050633,0.48400225,88.486,88.429,0.45418122]
[1772731051149,0.47713728,88.484,88.424,11.30914683]
[1772731051436,0.47713728,88.479,88.424,11.30914683]
[1772731051637,0.47713728,88.477,88.424,11.30914683]
[1772731051831,0.47713728,88.475,88.425,0.45418122]
[1772731052130,0.47713728,88.473,88.427,0.45418122]
[1772731054129,0.47713728,88.471,88.428,11.30863527]
[1772731054331,0.47713728,88.469,88.428,11.30863527]
[1772731054530,0.47713728,88.467,88.429,0.45418122]
[1772731055029,11.30301112,88.472,88.429,0.45418122]
[1772731055333,0.47713728,88.471,88.429,0.45418122]
[1772731056214,11.30326664,88.47,88.431,0.45418122]
[1772731056822,0.47713728,88.469,88.431,0.45418122]
[1772731058336,0.47713728,88.469,88.433,0.45418122]
[1772731058532,11.30268582,88.475,88.433,0.45418122]
[1772731059037,0.47713728,88.497,88.434,0.45418122]
[1772731059218,0.47713728,88.494,88.434,0.45418122]
[1772731059418,0.47713728,88.492,88.434,0.45418122]
[1772731060323,0.47713728,88.49,88.436,0.45418122]
[1772731060734,0.47713728,88.489,88.436,0.45418122]
[1772731060940,0.47713728,88.487,88.417,0.45418122]
[1772731061234,0.47713728,88.479,88.417,11.7642234]
[1772731061427,0.47713728,88.469,88.413,11.3104747]
[1772731061618,0.47713728,88.467,88.413,11.3104747]
[1772731061819,0.47713728,88.465,88.413,11.3104747]
[1772731062024,0.47713728,88.463,88.413,11.3104747]
[1772731062339,0.47713728,88.459,88.416,0.45418122]
[1772731063716,11.30409926,88.464,88.416,0.45418122]
[1772731064839,0.47713728,88.469,88.418,0.45418122]
[1772731066525,11.78065945,88.468,88.42,0.45418122]
[1772731067236,0.47713728,88.467,88.42,0.45418122]
[1772731068332,11.30352217,88.468,88.42,0.45418122]
[1772731068535,0.47713728,88.474,88.422,0.45418122]
[1772731069238,0.47713728,88.473,88.422,0.45418122]
[1772731070234,0.47713728,88.471,88.424,0.45418122]
[1772731072738,0.47713728,88.469,88.425,11.76320016]
[1772731073031,0.47713728,88.469,88.426,0.45418122]
[1772731075032,0.47713728,88.467,88.427,11.76294438]
[1772731077045,0.47713728,88.465,88.428,0.45418122]
[1772731077248,0.47713728,88.465,88.429,11.30850739]
[1772731077436,0.47713728,88.465,88.43,0.45418122]
[1772731077640,11.30377772,88.466,88.43,0.45418122]
[1772731078857,11.780915,88.466,88.43,0.45418122]
[1772731079148,0.47713728,88.465,88.43,0.45418122]
[1772731079446,11.30403327,88.464,88.432,0.45418122]
[1772731080532,0.45379337,88.489,88.432,0.45418122]
[1772731080732,11.30009547,88.495,88.433,0.46718958]
[1772731080952,0.45379337,88.494,88.433,0.46718958]
[1772731081459,0.45379337,88.492,88.436,0.46718958]
[1772731081661,28.24922597,88.498,88.436,0.46718958]
[1772731081662,11.29975824,88.498,88.436,0.46718958]
[1772731081961,0.45379337,88.497,88.439,0.46718958]
[1772731083457,11.75373913,88.496,88.442,0.46718958]
[1772731083658,0.45379337,88.495,88.442,0.46718958]
[1772731084559,11.29994576,88.496,88.442,0.46718958]
[1772731084862,28.24601338,88.509,88.442,0.46718958]
[1772731084863,0.45379337,88.5,88.442,0.46718958]
[1772731085748,0.45379337,88.498,88.445,0.46718958]
[1772731087160,0.45379337,88.498,88.444,0.28432314]
[1772731087161,0.45379337,88.496,88.439,0.46718958]
[1772731087366,0.45379337,88.489,88.439,0.46718958]
[1772731087568,0.45379337,88.487,88.439,0.46718958]
[1772731087870,0.45379337,88.484,88.44,11.30710085]
[1772731088046,0.45379337,88.482,88.44,11.30710085]
[1772731088246,0.45379337,88.482,88.441,0.46718958]
[1772731088846,0.45379337,88.484,88.441,0.46718958]
[1772731089647,11.30160595,88.483,88.443,0.46718958]
[1772731089853,11.75539932,88.483,88.443,0.46718958]
[1772731090252,0.45379337,88.482,88.443,0.46718958]
[1772731090464,11.30034519,88.493,88.444,0.46718958]
[1772731090767,0.45379337,88.506,88.444,0.46718958]
[1772731091644,0.45379337,88.515,88.449,0.46718958]
[1772731091866,11.29764782,88.514,88.45,0.46718958]
[1772731092365,0.45379337,88.513,88.45,0.46718958]
[1772731094246,0.45379337,88.511,88.453,0.46718958]
[1772731095366,40.04266086,88.512,88.303,106.09601576]
[1772731095367,0.45379337,88.489,88.424,0.46718958]
[1772731095560,0.45379337,88.487,88.424,0.46718958]
[1772731095751,0.45379337,88.485,88.424,0.46718958]
[1772731095945,0.45379337,88.483,88.424,0.46718958]
[1772731096171,0.45379337,88.481,88.424,0.46718958]
[1772731096362,0.45379337,88.477,88.426,0.46718958]
[1772731098579,0.45379337,88.474,88.428,0.46718958]
[1772731098752,0.45379337,88.494,88.429,0.46718958]
[1772731099468,0.49999999,88.509,88.43,3.69383402]
[1772731099786,0.45379337,88.512,88.432,0.46718958]
[1772731099969,0.45379337,88.512,88.434,0.46718958]
[1772731100170,0.45379337,88.512,88.433,1.27296115]
[1772731100171,0.45379337,88.512,88.437,0.46718958]
[1772731100560,11.75220707,88.508,88.44,0.46718958]
[1772731102359,0.45379337,88.507,88.443,0.46718958]
[1772731102784,0.45379337,88.507,88.446,0.46718958]
[1772731104174,0.45379337,88.505,88.446,0.46718958]
[1772731104367,0.45379337,88.503,88.446,0.46718958]
[1772731104568,0.45379337,88.5,88.447,11.77339555]
[1772731104877,0.45379337,88.498,88.448,0.46718958]
[1772731105071,0.45379337,88.496,88.448,0.46718958]
[1772731105382,0.45379337,88.494,88.448,0.46718958]
[1772731106679,0.45379337,88.492,88.45,0.46718958]
[1772731107987,0.45391101,88.491,88.449,11.30595032]
[1772731108170,0.45391101,88.491,88.449,11.7713015]
[1772731109185,0.45391101,88.489,88.449,11.7713015]
[1772731109981,0.45391101,88.489,88.45,0.46535118]
[1772731110164,0.45391101,88.489,88.442,11.30684516]
[1772731110368,0.49155233,88.487,88.442,11.80051636]
[1772731110885,0.49155233,88.487,88.443,0.4936712]
[1772731111263,11.30122279,88.486,88.444,39.57306318]
[1772731111489,0.49155233,88.485,88.445,0.4936712]
[1772731113563,0.49155233,88.483,88.447,0.4936712]
[1772731114373,0.49155233,88.469,88.411,0.4936712]
[1772731114982,0.49155233,88.477,88.411,0.4936712]
[1772731115562,0.49155233,88.475,88.414,0.4936712]
[1772731115780,0.49155233,88.473,88.414,0.4936712]
[1772731115963,0.49155233,88.471,88.414,0.4936712]
[1772731116174,0.49155233,88.469,88.414,0.4936712]
[1772731118195,0.49155233,88.467,88.416,0.4936712]
[1772731120680,11.79533005,88.466,88.418,0.4936712]
[1772731120880,0.49155233,88.465,88.418,0.4936712]
[1772731121879,0.49155233,88.465,88.419,0.4936712]
[1772731122681,0.49155233,88.463,88.421,0.4936712]
[1772731124700,0.49155233,88.461,88.423,0.4936712]
[1772731126794,0.49155233,88.459,88.425,0.4936712]
[1772731128480,0.49155233,88.459,88.424,11.30914683]
[1772731128997,0.49155233,88.457,88.419,0.4936712]
[1772731129294,11.30402332,88.465,88.419,0.4936712]
[1772731129479,0.49155233,88.473,88.42,0.4936712]
[1772731129691,0.49155233,88.472,88.42,0.4936712]
[1772731129994,0.49155233,88.47,88.42,0.4936712]
[1772731130173,0.49155233,88.468,88.42,0.4936712]
[1772731130373,0.49155233,88.466,88.42,0.4936712]
[1772731130570,0.49155233,88.464,88.42,0.4936712]
[1772731130996,0.49155233,88.462,88.422,0.4936712]
[1772731132002,11.30362606,88.468,88.422,0.4936712]
[1772731132198,0.49155233,88.467,88.422,0.4936712]
[1772731133198,11.30377772,88.466,88.424,0.4936712]
[1772731133903,0.49155233,88.465,88.424,0.4936712]
[1772731135899,0.49155233,88.463,88.426,0.4936712]
[1772731138001,11.30428884,88.462,88.428,0.4936712]
[1772731138901,11.79584117,88.462,88.428,0.4936712]
[1772731139292,0.49155233,88.461,88.428,0.4936712]
[1772731140097,0.49155233,88.469,88.43,0.46028501]
[1772731141398,96.05822257,88.488,88.413,11.31055387]
[1772731141399,0.45641678,88.467,88.413,11.31055387]
[1772731141709,0.45641678,88.465,88.413,11.77083888]
[1772731141901,0.45641678,88.463,88.413,11.77083888]
[1772731142207,0.45641678,88.463,88.379,45.25925231]
[1772731142208,0.45641678,88.459,88.41,11.31089238]
[1772731142422,0.45641678,88.457,88.411,0.46028501]
[1772731142589,0.45641678,88.474,88.412,0.46028501]
[1772731142791,0.49999999,88.487,88.412,0.46028501]
[1772731142792,0.45641678,88.483,88.414,0.28432314]
[1772731142990,0.45641678,88.488,88.415,0.46028501]
[1772731143605,0.45641678,88.488,88.42,0.46028501]
[1772731144195,0.45641678,88.486,88.423,0.46028501]
[1772731144397,0.45641678,88.514,88.428,0.46028501]
[1772731144602,11.2981584,88.51,88.437,0.46028501]
[1772731144797,11.2981584,88.51,88.44,0.46028501]
[1772731144994,11.2981584,88.51,88.442,0.46028501]
[1772731145197,0.45641678,88.53,88.444,0.46028501]
[1772731145398,0.45641678,88.53,88.447,0.46028501]
[1772731145691,0.45641678,88.528,88.45,0.46028501]
[1772731145896,0.45641678,88.526,88.45,0.46028501]
[1772731146194,11.29624399,88.525,88.458,0.46028501]
[1772731146897,0.45641678,88.524,88.458,0.46028501]
[1772731147113,39.53685398,88.525,88.458,0.46028501]
[1772731147114,0.45641678,88.522,88.458,0.46028501]
[1772731147405,0.45641678,88.509,88.448,11.30602223]
[1772731147610,0.45641678,88.507,88.448,11.30602223]
[1772731147907,0.45641678,88.505,88.449,0.46028501]
[1772731148110,0.45641678,88.501,88.451,0.46028501]
[1772731148306,0.45641678,88.499,88.451,0.46028501]
[1772731150512,0.45641678,88.497,88.453,0.46028501]
[1772731151105,0.45641678,88.497,88.447,0.46028501]
[1772731152795,11.29994576,88.496,88.449,0.46028501]
[1772731153314,0.45641678,88.495,88.449,0.46028501]
[1772731154706,0.45641678,88.493,88.451,0.46028501]
[1772731156717,0.45641678,88.489,88.44,28.26754826]
[1772731157017,0.45641678,88.488,88.43,11.30827347]
[1772731157228,0.45641678,88.479,88.43,11.30827347]
[1772731158037,0.45641678,88.479,88.432,0.46028501]
[1772731158201,4.31371906,88.51,88.432,0.46028501]
[1772731158202,0.45641678,88.495,88.432,0.46028501]
[1772731158403,11.30020114,88.494,88.432,0.46028501]
[1772731158641,0.45641678,88.493,88.432,0.46028501]
[1772731158932,0.45641678,88.491,88.435,0.46028501]
[1772731160332,11.30043153,88.493,88.438,0.46028501]
[1772731160939,0.45641678,88.51,88.441,0.46028501]
[1772731161714,0.45641678,88.508,88.441,0.46028501]
[1772731161918,0.45641678,88.506,88.441,0.46028501]
[1772731162211,0.49999999,88.505,88.441,0.46028501]
[1772731162423,0.45641678,88.504,88.441,0.46028501]
[1772731162626,0.45641678,88.499,88.441,0.46028501]
[1772731162810,0.45641678,88.495,88.444,0.46028501]
[1772731165033,0.45641678,88.493,88.446,0.46028501]
[1772731168021,0.47396426,88.491,88.447,11.30620597]
[1772731168435,0.47396426,88.489,88.439,11.30720498]
[1772731168640,0.47396426,88.489,88.398,45.2496408]
[1772731168641,0.47396426,88.487,88.428,0.45560406]
[1772731168839,0.47396426,88.459,88.411,0.45560406]
[1772731169646,0.47396426,88.477,88.411,0.45560406]
[1772731170121,0.45204895,88.495,88.418,0.45377948]
[1772731170325,0.45204895,88.528,88.433,0.45377948]
[1772731170527,0.45204895,88.526,88.436,0.45377948]
[1772731170732,0.45204895,88.524,88.436,0.45377948]
[1772731171040,0.45204895,88.522,88.436,0.45377948]
[1772731171345,0.45204895,88.519,88.436,0.45377948]
[1772731171525,0.45204895,88.517,88.436,0.45377948]
[1772731171721,11.55841745,88.52,88.436,0.45377948]
[1772731171722,0.45204895,88.515,88.436,0.45377948]
[1772731172029,0.45204895,88.513,88.436,0.45377948]
[1772731172229,0.45204895,88.511,88.439,0.45377948]
[1772731172434,0.45204895,88.509,88.439,0.45377948]
[1772731172634,0.45204895,88.507,88.439,0.45377948]
[1772731172818,0.45204895,88.505,88.439,0.45377948]
[1772731173018,0.45204895,88.503,88.439,0.45377948]
[1772731173224,0.45204895,88.501,88.439,0.45377948]
[1772731174237,0.45204895,88.499,88.442,0.45377948]
[1772731175144,0.45204895,88.497,88.445,0.45377948]
[1772731176745,0.45204895,88.503,88.445,0.45377948]
[1772731176924,0.45204895,88.501,88.445,0.45377948]
[1772731177125,0.45204895,88.499,88.445,0.45377948]
[1772731177379,0.49999999,88.5,88.413,1.13105538]
[1772731177380,0.45204895,88.497,88.447,0.45377948]
[1772731178537,0.45204895,88.495,88.447,0.45377948]
[1772731178746,0.45204895,88.493,88.447,0.45377948]
[1772731178949,0.45204895,88.489,88.43,0.45377948]
[1772731179139,0.45204895,88.487,88.43,0.45377948]
[1772731179339,0.45204895,88.482,88.416,0.45377948]
[1772731179656,0.45204895,88.459,88.409,11.31106561]
[1772731179820,0.45204895,88.459,88.408,0.45377948]
[1772731180022,0.45204895,88.449,88.408,0.45377948]
[1772731180225,0.45204895,88.449,88.406,11.31138423]
[1772731180648,0.45204895,88.449,88.401,11.3119959]
[1772731181233,0.45204895,88.449,88.402,0.45377948]
[1772731181440,0.45204895,88.447,88.404,0.45377948]
[1772731182238,0.45204895,88.447,88.397,11.31252116]
[1772731182763,0.45204895,88.447,88.397,11.76630064]
[1772731183157,0.45204895,88.447,88.398,0.45377948]
[1772731183356,0.45204895,88.445,88.399,11.31234516]
[1772731183663,0.45204895,88.445,88.4,0.45377948]
[1772731186053,11.30658948,88.444,88.401,11.31208922]
[1772731186233,11.7585572,88.444,88.402,0.49413872]
[1772731186437,0.45196772,88.452,88.403,0.49413872]
[1772731186640,11.30569467,88.451,88.403,0.49413872]
[1772731186857,0.45196772,88.45,88.403,0.49413872]
[1772731187262,0.45196772,88.448,88.403,0.49413872]
[1772731187457,0.45196772,88.446,88.403,0.49413872]
[1772731188159,0.45196772,88.444,88.405,0.49413872]
[1772731188670,0.45196772,88.442,88.404,11.31170535]
[1772731188872,0.45196772,88.44,88.404,11.31170535]
[1772731189043,0.45196772,88.438,88.404,11.31170535]
[1772731189561,0.45196772,88.436,88.397,0.49413872]
[1772731190266,0.45196772,88.434,88.399,0.49413872]
[1772731190865,11.30625416,88.447,88.399,0.28432314]
[1772731191043,11.30625416,88.447,88.4,0.49413872]
[1772731191556,0.45196772,88.451,88.4,0.49413872]
[1772731191755,11.30582249,88.45,88.4,0.49413872]
[1772731191956,0.45196772,88.451,88.4,0.49413872]
[1772731192164,11.30582249,88.45,88.403,0.49413872]
[1772731192663,0.45196772,88.451,88.403,0.49413872]
[1772731193371,0.45196772,88.45,88.403,0.49413872]
[1772731194268,11.30595032,88.449,88.406,0.49413872]
[1772731194567,11.30513747,88.456,88.406,0.49413872]
[1772731194949,0.45196772,88.455,88.406,0.49413872]
[1772731196069,0.45196772,88.453,88.406,0.49413872]
[1772731196262,0.45196772,88.45,88.407,11.80546022]
[1772731196458,0.45196772,88.448,88.407,11.80546022]
[1772731196855,0.45196772,88.448,88.408,0.49413872]
[1772731198162,45.19137001,88.513,88.384,56.57107625]
[1772731198163,0.45196772,88.454,88.41,0.49413872]
[1772731199770,11.30543904,88.453,88.41,0.49413872]
[1772731199986,11.30543904,88.453,88.412,0.49413872]
[1772731200377,0.5012768,88.467,88.413,0.46148009]
[1772731200667,0.5012768,88.479,88.416,0.46148009]
[1772731200873,0.5012768,88.477,88.416,0.46148009]
[1772731201074,0.5012768,88.475,88.416,0.46148009]
[1772731201255,0.5012768,88.473,88.416,0.46148009]
[1772731201572,0.5012768,88.471,88.416,0.46148009]
[1772731201876,0.5012768,88.469,88.416,0.46148009]
[1772731202060,0.5012768,88.469,88.411,39.58783409]
[1772731202061,0.5012768,88.466,88.418,0.46148009]
[1772731202376,0.5012768,88.464,88.418,0.46148009]
[1772731202578,0.5012768,88.459,88.403,0.46148009]
[1772731202776,84.7773746,88.467,88.403,0.46148009]
[1772731202777,0.49999999,88.466,88.403,0.46148009]
[1772731202955,0.5012768,88.476,88.403,0.46148009]
[1772731203146,1.45803863,88.493,88.408,0.46148009]
[1772731203147,0.5012768,88.485,88.408,0.46148009]
[1772731203353,0.5012768,88.487,88.411,0.46148009]
[1772731203553,0.5012768,88.485,88.411,0.46148009]
[1772731203765,11.30103477,88.488,88.411,0.46148009]
[1772731203766,11.30103477,88.488,88.417,0.46148009]
[1772731203974,11.30045653,88.492,88.418,39.58469994]
[1772731204174,0.5012768,88.49,88.423,0.46148009]
[1772731204369,11.30045653,88.492,88.423,0.46148009]
[1772731204773,0.5012768,88.499,88.429,0.46148009]
[1772731204774,11.29969038,88.498,88.429,0.46148009]
[1772731205160,11.29969038,88.498,88.431,0.46148009]
[1772731205360,0.5012768,88.507,88.433,0.46148009]
[1772731205960,11.29866901,88.506,88.433,0.46148009]
[1772731206159,11.29866901,88.506,88.439,0.46148009]
[1772731206473,0.5012768,88.505,88.439,0.46148009]
[1772731208265,0.5012768,88.503,88.442,0.46148009]
[1772731208458,0.5012768,88.501,88.442,0.46148009]
[1772731208661,11.29892434,88.504,88.442,0.46148009]
[1772731208866,11.79964651,88.509,88.442,0.46148009]
[1772731209577,0.5012768,88.508,88.445,0.46148009]
[1772731210480,0.5012768,88.506,88.448,0.46148009]
[1772731210970,11.29854135,88.507,88.448,0.46148009]
[1772731211175,11.79903848,88.514,88.451,0.46148009]
[1772731211365,0.5012768,88.513,88.451,0.46148009]
[1772731212770,0.5012768,88.524,88.456,0.46148009]
[1772731213084,0.5012768,88.522,88.457,0.46148009]
[1772731213461,0.5012768,88.533,88.458,4.82477569]
[1772731213666,0.5012768,88.533,88.457,0.46148009]
[1772731213667,0.5012768,88.533,88.463,0.46148009]
[1772731213877,0.5012768,88.533,88.47,3.69383402]
[1772731214085,0.5012768,88.533,88.473,0.46148009]
[1772731214677,11.29509566,88.534,88.475,0.46148009]
[1772731214984,0.5012768,88.538,88.481,0.46148009]
[1772731215664,0.5012768,88.536,88.481,0.46148009]
[1772731215867,0.5012768,88.534,88.476,11.30250011]
[1772731216066,0.5012768,88.529,88.476,11.30250011]
[1772731216266,0.5012768,88.527,88.476,11.30250011]
[1772731216573,0.5012768,88.525,88.476,11.30250011]
[1772731216773,0.5012768,88.523,88.476,11.30250011]
[1772731216973,0.5012768,88.521,88.472,11.30301112]
[1772731217168,0.5012768,88.519,88.472,11.30301112]
[1772731217372,0.5012768,88.517,88.462,11.30428884]
[1772731217575,0.5012768,88.509,88.458,11.30476687]
[1772731217780,0.5012768,88.507,88.459,0.46148009]
[1772731218091,0.5012768,88.505,88.459,0.46148009]
[1772731218891,11.8003288,88.503,88.461,0.46148009]
[1772731219074,11.29624399,88.525,88.464,0.46148009]
[1772731219278,11.29624399,88.525,88.465,0.46148009]
[1772731219478,11.29522325,88.533,88.467,0.46148009]
[1772731219673,0.2,88.54,88.475,0.46148009]
[1772731219896,11.49433599,88.54,88.476,0.46148009]
[1772731220275,39.7301616,88.54,88.476,0.46148009]
[1772731220476,0.5012768,88.539,88.476,0.46148009]
[1772731221202,0.5012768,88.537,88.479,0.46148009]
[1772731221497,0.5012768,88.535,88.479,0.46148009]
[1772731221793,0.5012768,88.528,88.479,0.46148009]
[1772731221998,0.5012768,88.526,88.479,0.46148009]
[1772731222205,0.28432314,88.537,88.479,0.46148009]
[1772731222206,0.5012768,88.524,88.479,0.46148009]
[1772731222499,0.5012768,88.522,88.469,11.3033944]
[1772731222670,0.5012768,88.52,88.469,11.3033944]
[1772731222874,0.5012768,88.518,88.469,11.3033944]
[1772731223074,0.5012768,88.516,88.469,11.3033944]
[1772731223284,0.5012768,88.513,88.459,11.30464923]
[1772731223470,0.5012768,88.509,88.457,0.46148009]
[1772731223676,0.5012768,88.507,88.457,0.46148009]
[1772731223876,0.5012768,88.505,88.457,0.46148009]
[1772731224077,0.5012768,88.503,88.447,0.46148009]
[1772731224291,0.5012768,88.501,88.448,0.46148009]
[1772731224494,0.5012768,88.499,88.448,0.46148009]
[1772731225182,0.5012768,88.497,88.451,0.46148009]
[1772731225390,0.5012768,88.496,88.451,0.46148009]
[1772731228196,0.4781053,88.494,88.453,0.45281321]
[1772731229189,0.4781053,88.492,88.452,11.30556686]
[1772731229390,0.4781053,88.49,88.452,11.75838007]
[1772731230272,0.47798612,88.488,88.453,0.45354764]
[1772731231300,0.49999999,88.494,88.453,0.45354764]
[1772731231301,11.30036271,88.493,88.453,0.45354764]
[1772731231501,11.77665513,88.506,88.454,0.45354764]
[1772731231989,11.29866901,88.506,88.454,0.45354764]
[1772731232299,11.2979031,88.512,88.457,0.45354764]
[1772731232500,0.49999999,88.511,88.457,0.45354764]
[1772731232688,0.47798612,88.525,88.46,0.45354764]
[1772731233002,11.77442621,88.524,88.46,0.45354764]
[1772731233199,11.29550021,88.531,88.462,0.59570921]
[1772731233394,0.2,88.54,88.471,4.82477569]
[1772731233595,0.2,88.54,88.484,0.45354764]
[1772731234498,0.2,88.54,88.489,0.45354764]
[1772731235078,0.2,88.55,88.494,0.45354764]
[1772731235280,0.2,88.55,88.495,0.45354764]
[1772731235495,0.2,88.55,88.505,0.45354764]
[1772731236107,11.77116842,88.549,88.505,0.45354764]
[1772731236310,11.77116842,88.549,88.507,0.73787078]
[1772731236493,11.77116842,88.549,88.508,0.45354764]
[1772731237426,0.47798612,88.547,88.508,0.45354764]
[1772731238512,0.47798612,88.545,88.509,11.29828605]
[1772731239105,0.47798612,88.545,88.51,0.45354764]
[1772731239314,0.47798612,88.545,88.511,0.45354764]
[1772731239810,0.67798612,88.55,88.511,0.45354764]
[1772731240505,11.2931823,88.549,88.511,0.45354764]
[1772731240707,11.2931823,88.549,88.513,0.45354764]
[1772731242913,11.2931823,88.549,88.515,0.45354764]
[1772731243318,0.2,88.57,88.516,0.45354764]
[1772731243498,0.2,88.57,88.519,0.45354764]
[1772731243810,0.67798612,88.57,88.519,0.45354764]
[1772731244815,11.96859388,88.57,88.519,0.45354764]
[1772731245013,11.96859388,88.57,88.524,0.59570921]
[1772731245233,11.96859388,88.57,88.525,0.45354764]
[1772731245698,0.2,88.57,88.525,0.45354764]
[1772731247515,0.47798612,88.569,88.528,0.45354764]
[1772731249612,0.47798612,88.568,88.531,0.45354764]
[1772731249801,0.47798612,88.567,88.517,2.29781809]
[1772731249996,0.47798612,88.565,88.517,2.29781809]
[1772731250210,0.47798612,88.563,88.517,2.29781809]
[1772731250405,0.47798612,88.561,88.517,2.29781809]
[1772731250697,0.47798612,88.559,88.518,11.2971373]
[1772731251016,0.47798612,88.557,88.518,11.2971373]
[1772731251218,0.47798612,88.555,88.518,11.2971373]
[1772731251516,0.47798612,88.551,88.518,11.2971373]
[1772731251712,0.47798612,88.55,88.518,11.2971373]
[1772731253012,39.52479898,88.552,88.518,11.2971373]
[1772731253013,0.47798612,88.549,88.518,11.2971373]
[1772731254217,0.47798612,88.547,88.517,2.29781809]
[1772731255296,0.47798612,88.545,88.517,2.29781809]
[1772731255812,0.47798612,88.545,88.517,13.59497028]
[1772731256018,0.47798612,88.545,88.517,2.29781809]
[1772731257321,0.47798612,88.543,88.517,2.29781809]
[1772731257504,0.47798612,88.543,88.502,11.29917967]
[1772731257906,0.47798612,88.543,88.503,0.45354764]
[1772731258129,11.29382002,88.544,88.503,0.45354764]
[1772731258627,11.29337477,88.548,88.503,0.45354764]
[1772731259329,0.47798612,88.548,88.505,0.45354764]
[1772731261010,0.46652024,88.546,88.49,11.30071194]
[1772731261213,0.46652024,88.544,88.491,0.28432314]
[1772731261429,0.46652024,88.541,88.49,11.30071194]
[1772731261631,0.46652024,88.539,88.491,0.49404416]
[1772731261819,39.52926294,88.542,88.492,0.49404416]
[1772731262012,11.29407512,88.542,88.492,0.49404416]
[1772731262725,0.46652024,88.556,88.495,0.49404416]
[1772731262926,11.75893738,88.555,88.495,0.49404416]
[1772731263118,0.46652024,88.554,88.495,0.49404416]
[1772731263729,0.46652024,88.552,88.498,0.49404416]
[1772731265434,11.29267218,88.553,88.498,0.49404416]
[1772731266120,0.46652024,88.559,88.501,0.49404416]
[1772731266634,11.29177958,88.56,88.501,0.49404416]
[1772731266635,0.46652024,88.557,88.501,0.49404416]
[1772731267320,51.05347009,88.56,88.499,11.2995627]
[1772731267321,0.46652024,88.549,88.499,11.2995627]
[1772731267520,0.46652024,88.547,88.493,0.49404416]
[1772731267720,0.46652024,88.545,88.496,0.49404416]
[1772731268213,0.46652024,88.545,88.489,2.5861072]
[1772731268214,0.46652024,88.543,88.499,0.49404416]
[1772731268914,11.29321815,88.549,88.499,0.49404416]
[1772731269118,0.46652024,88.568,88.501,0.49404416]
[1772731269337,0.46652024,88.567,88.502,0.49404416]
[1772731269832,0.46652024,88.566,88.502,0.49404416]
[1772731270023,0.46652024,88.564,88.502,0.49404416]
[1772731270334,0.46652024,88.56,88.505,0.49404416]
[1772731272414,0.46652024,88.56,88.508,0.49404416]
[1772731273441,11.29190709,88.559,88.508,0.49404416]
[1772731274540,0.46652024,88.566,88.511,0.49404416]
[1772731275449,0.46652024,88.566,88.496,102.0]
[1772731275450,0.46652024,88.549,88.491,0.49404416]
[1772731275656,4.30852144,88.54,88.491,0.49404416]
[1772731275819,0.46652024,88.529,88.468,2.39175027]
[1772731276019,0.46652024,88.509,88.468,2.39175027]
[1772731276220,0.38860022,88.479,88.442,2.32468563]
[1772731276431,0.38876095,88.477,88.423,0.49404416]
[1772731276638,0.38876095,88.499,88.428,0.49404416]
[1772731276817,0.38876095,88.499,88.43,0.49404416]
[1772731277025,0.38876095,88.499,88.431,0.49404416]
[1772731277326,0.38876095,88.499,88.432,0.49404416]
[1772731277638,0.38876095,88.499,88.433,0.49404416]
[1772731278439,11.68860329,88.498,88.436,0.49404416]
[1772731278631,0.38906676,88.497,88.436,0.49404416]
[1772731278837,0.38906676,88.514,88.439,0.49404416]
[1772731279348,0.38906676,88.534,88.46,4.82477569]
[1772731279639,0.38906676,88.534,88.464,0.49404416]
[1772731279640,0.38921862,88.533,88.464,0.49404416]
[1772731279829,0.38921862,88.531,88.464,0.49404416]
[1772731280136,0.38921862,88.529,88.464,0.49404416]
[1772731280339,0.38921862,88.527,88.464,0.49404416]
[1772731280521,0.38936787,88.525,88.467,0.49404416]
[1772731281627,0.38952333,88.519,88.467,0.49404416]
[1772731281833,0.38952333,88.517,88.467,0.49404416]
[1772731282027,0.38952333,88.515,88.46,11.30447831]
[1772731282247,0.38952333,88.513,88.46,11.30447831]
[1772731283223,0.3896755,88.51,88.46,11.30447831]
[1772731283424,0.3896755,88.509,88.457,0.49404416]
[1772731283918,0.38982139,88.508,88.453,11.30542371]
[1772731284119,0.38982139,88.499,88.447,11.80024027]
[1772731284751,0.38982139,88.499,88.432,2.29646454]
[1772731284959,4.47815715,88.507,88.333,45.28297584]
[1772731284960,3.69383402,88.497,88.333,45.28297584]
[1772731285123,11.30863527,88.428,88.379,2.16753367]